bitfinex-derivatives/quotes_ETHF0:USTF0_20260207
["timestamp","ask_amount","ask_price","bid_price","bid_amount"]
[1770451081571,1.01039105,2028.3,2027.2,0.00145283]
[1770451081572,1.00639759,2028.2,2027.2,0.00145283]
[1770451082470,1.00639759,2028.2,2027.2,1.9986369]
[1770451083665,1.00639759,2028.2,2027.2,0.00145283]
[1770451084056,1.00639759,2028.2,2027.2,1.9986369]
[1770451084463,1.00639759,2028.2,2027.2,0.00145283]
[1770451085368,1.00639759,2028.2,2027.2,1.9986369]
[1770451088573,0.92430755,2028.4,2027.2,1.9986369]
[1770451089076,0.92070035,2028.3,2027.2,1.9986369]
[1770451090267,0.91164529,2028.2,2027.2,1.9986369]
[1770451092071,0.89001885,2028.4,2027.2,1.9986369]
[1770451094072,0.0041986,2028.5,2027.4,1.96216984]
[1770451095276,0.85633722,2028.5,2027.4,1.96216984]
[1770451097283,0.83984597,2028.5,2027.4,1.96216984]
[1770451098492,0.83984597,2028.5,2027.4,2.20893984]
[1770451100088,0.0041986,2028.5,2027.6,1.96216984]
[1770451101694,0.79314592,2029.0,2027.8,2.20889984]
[1770451102091,44.63857081,2029.2,2027.8,2.20889984]
[1770451102290,44.63857081,2029.2,2027.8,1.96216984]
[1770451102492,0.7815438,2029.3,2028.1,1.96216984]
[1770451102691,0.78531124,2029.3,2028.1,1.96216984]
[1770451103295,0.77343233,2029.1,2028.1,1.96216984]
[1770451103686,0.76424697,2029.0,2028.1,1.96216984]
[1770451104087,0.76424697,2028.9,2028.1,1.96216984]
[1770451107695,44.59665453,2029.0,2028.1,1.96216984]
[1770451107999,0.74280303,2028.9,2028.1,1.96216984]
[1770451108599,0.74280303,2029.1,2028.1,1.96216984]
[1770451110695,43.85761894,2029.3,2028.1,1.96216984]
[1770451110898,0.58805668,2029.4,2028.3,1.96216984]
[1770451111699,0.58879452,2029.3,2028.3,1.96216984]
[1770451112198,0.59502075,2029.3,2028.3,1.96216984]
[1770451112889,0.00622623,2029.3,2028.3,1.96216984]
[1770451113090,0.60338132,2029.3,2028.3,1.96216984]
[1770451113290,0.00622623,2029.3,2028.5,1.96216984]
[1770451114301,0.58805153,2029.9,2028.6,1.96216984]
[1770451115198,0.59409455,2029.9,2028.6,1.96216984]
[1770451121291,0.5517323,2029.8,2028.6,1.96216984]
[1770451123102,0.52703646,2029.5,2028.6,1.96216984]
[1770451123302,0.52703646,2029.3,2028.6,1.96216984]
[1770451124499,0.51815331,2029.2,2028.6,1.96216984]
[1770451124906,0.50098229,2029.1,2028.6,1.96216984]
[1770451126401,0.49216488,2029.0,2027.9,1.84650035]
[1770451126597,2.93481883,2029.2,2027.9,1.84650035]
[1770451126802,2.93481883,2029.2,2028.0,1.84650035]
[1770451127001,2.93481883,2029.3,2028.2,1.84650035]
[1770451127203,2.93481883,2029.5,2028.2,1.84650035]
[1770451128311,3.43199006,2029.4,2028.2,1.84650035]
[1770451128612,0.47249679,2029.3,2028.2,1.84650035]
[1770451129508,2.93481883,2029.4,2028.2,1.84650035]
[1770451129809,3.39072672,2029.4,2028.2,1.84650035]
[1770451130009,0.45590789,2029.3,2028.2,1.84650035]
[1770451130508,0.45590789,2029.3,2028.3,1.84650035]
[1770451130509,3.39072672,2029.3,2028.3,1.84650035]
[1770451131408,0.45834841,2029.2,2028.3,1.84650035]
[1770451133112,0.43100749,2029.1,2028.3,1.84650035]
[1770451133314,3.36582632,2029.1,2028.3,1.84650035]
[1770451133912,0.42237971,2029.0,2028.3,1.84650035]
[1770451134112,3.35719854,2029.1,2028.3,1.84650035]
[1770451135109,2.93481883,2029.1,2028.3,1.84650035]
[1770451135314,2.93481883,2029.2,2028.3,1.84650035]
[1770451136009,3.34115033,2029.2,2028.3,1.84650035]
[1770451136409,2.93481883,2029.2,2028.3,1.84650035]
[1770451136808,3.33782536,2029.2,2028.3,1.84650035]
[1770451137010,2.93481883,2029.2,2028.3,1.84650035]
[1770451137514,3.33782536,2029.2,2028.3,1.84650035]
[1770451138015,0.39445919,2029.1,2028.3,1.84650035]
[1770451138215,2.93481883,2029.2,2028.3,1.84650035]
[1770451138402,46.95703044,2029.2,2028.3,1.84650035]
[1770451140114,2.9423581,2029.2,2028.3,1.84650035]
[1770451140413,16.08025799,2030.7,2028.8,1.20157448]
[1770451140414,44.02221161,2029.7,2028.8,1.20157448]
[1770451140612,51.67422724,2029.8,2028.8,1.20569525]
[1770451140811,1.78238742,2029.7,2028.8,1.20569525]
[1770451141104,1.78238742,2029.7,2028.9,1.19771772]
[1770451141312,1.78238742,2029.7,2028.8,0.00412077]
[1770451141516,1.78238742,2029.5,2028.8,0.00412077]
[1770451141716,1.78238742,2029.5,2028.4,2.93854365]
[1770451141717,1.78238742,2029.3,2028.4,1.6021501]
[1770451142417,1.78238742,2029.1,2028.1,1.60627087]
[1770451142611,1.78238742,2029.1,2028.1,1.61071563]
[1770451143516,1.78238742,2029.1,2028.2,1.56857972]
[1770451144209,1.78238742,2029.1,2028.3,1.55978029]
[1770451144612,7.33703526,2029.5,2028.3,1.55978029]
[1770451144613,1.78238742,2029.3,2028.4,1.54977988]
[1770451148719,1.77632087,2029.5,2028.5,1.5186948]
[1770451149404,1.77632087,2029.5,2028.6,1.51684831]
[1770451149806,1.79662976,2029.3,2028.2,2.36938049]
[1770451150009,1.79662976,2029.1,2028.2,1.50689705]
[1770451151116,1.79662976,2029.0,2028.2,1.50689705]
[1770451151312,1.79662976,2029.0,2028.1,0.00444476]
[1770451152007,1.79662976,2028.8,2027.8,1.61810542]
[1770451152210,1.79662976,2028.7,2027.8,1.61810542]
[1770451152907,1.79662976,2028.7,2027.5,10.28425808]
[1770451152908,1.79662976,2028.4,2027.6,1.60209461]
[1770451153112,1.80174072,2028.4,2027.6,1.60677185]
[1770451158816,1.80174072,2028.4,2027.6,1.55100488]
[1770451161020,1.80174072,2028.4,2027.6,1.53402015]
[1770451161819,1.80174072,2028.4,2027.6,0.00467724]
[1770451162522,1.80174072,2028.4,2027.6,1.52400229]
[1770451163523,1.80174072,2028.4,2027.6,0.00467724]
[1770451164323,1.80174072,2028.4,2027.6,1.51102928]
[1770451174427,0.00511096,2028.4,2027.6,1.51102928]
[1770451174633,1.79662976,2029.1,2028.0,1.37408065]
[1770451174831,1.79662976,2029.1,2028.1,1.37408065]
[1770451175230,1.79662976,2029.1,2028.2,1.37408065]
[1770451175635,1.80242217,2029.1,2028.2,1.37408065]
[1770451175832,1.80242217,2029.1,2028.3,1.36279222]
[1770451176332,1.80242217,2029.1,2028.1,1.36279222]
[1770451177431,1.75312256,2029.0,2028.1,1.36279222]
[1770451178034,1.75312256,2028.8,2028.0,1.34730354]
[1770451179034,1.75312256,2028.6,2027.7,1.34009831]
[1770451182136,1.75312256,2028.6,2027.7,1.30357021]
[1770451182635,1.75312256,2028.6,2027.6,0.00467724]
[1770451182840,1.75312256,2028.5,2027.6,1.30606535]
[1770451183040,1.75312256,2028.5,2027.6,0.00467724]
[1770451183744,1.75312256,2028.4,2027.6,1.29705443]
[1770451185646,1.75312256,2028.6,2027.6,1.29705443]
[1770451185942,1.75312256,2028.6,2027.7,1.26698984]
[1770451187533,1.75312256,2029.0,2027.7,1.26698984]
[1770451188340,1.75312256,2029.0,2027.8,1.72094421]
[1770451188644,1.75312256,2029.0,2027.9,1.72094421]
[1770451188845,1.75312256,2029.0,2028.2,1.72094421]
[1770451189042,1.75312256,2029.0,2027.9,1.72094421]
[1770451189242,1.75312256,2029.0,2028.0,1.72094421]
[1770451199653,1.75312256,2028.9,2028.0,1.72094421]
[1770451199856,0.43200253,2028.2,2027.2,4.40753918]
[1770451200049,0.43200253,2028.2,2027.2,3.97553665]
[1770451200244,0.43200253,2028.2,2027.2,5.73718408]
[1770451200448,2.94958268,2027.9,2027.2,3.97553665]
[1770451200645,0.72184745,2027.7,2027.2,5.75047077]
[1770451200849,0.72184745,2027.7,2027.2,5.7565076]
[1770451201158,0.72184745,2027.7,2027.2,0.00603683]
[1770451201356,5.65584745,2027.5,2027.2,3.98157348]
[1770451201654,5.66193044,2027.5,2027.2,3.98157348]
[1770451201854,5.66193044,2027.5,2027.2,0.00603683]
[1770451202156,4.94008299,2027.5,2027.2,0.00603683]
[1770451202357,0.00608299,2027.5,2027.2,0.00603683]
[1770451202655,0.78897655,2027.4,2027.2,0.00603683]
[1770451203145,0.78897655,2027.4,2026.5,1.72094421]
[1770451203346,1.75312256,2027.2,2025.8,1.72094421]
[1770451203750,1.75312256,2027.2,2026.0,1.72094421]
[1770451203947,1.75312256,2026.6,2025.8,1.72094421]
[1770451204149,1.75312256,2026.6,2025.8,1.7270453]
[1770451204345,1.75312256,2026.8,2026.0,1.72094421]
[1770451204559,1.75312256,2027.1,2026.0,1.72094421]
[1770451204854,1.75312256,2027.1,2026.1,5.69648086]
[1770451205056,1.75312256,2027.0,2026.1,1.72094421]
[1770451205348,1.75312256,2027.0,2026.2,3.97553665]
[1770451205757,1.75312256,2027.0,2026.2,1.80318904]
[1770451205955,2.94965937,2027.0,2025.9,1.72094421]
[1770451206151,2.94965937,2026.7,2026.0,1.34577599]
[1770451206354,2.94965937,2026.8,2026.0,1.34577599]
[1770451206651,0.17720818,2026.7,2026.0,1.34577599]
[1770451206856,0.17110709,2026.6,2025.5,2.17278613]
[1770451207356,0.17110709,2026.6,2025.7,2.17583667]
[1770451207757,0.17110709,2026.6,2025.1,2.16593069]
[1770451207958,0.18434105,2026.5,2025.1,2.16756503]
[1770451208258,0.18434105,2026.5,2025.3,2.16593069]
[1770451208658,1.13611,2025.9,2023.1,2.26312282]
[1770451208859,0.65,2025.8,2023.3,2.26312282]
[1770451209066,2.94965937,2026.6,2024.1,2.26312282]
[1770451209256,2.94965937,2026.7,2024.1,2.51030282]
[1770451209554,0.06662816,2026.6,2024.3,2.26312282]
[1770451209752,0.06662816,2026.4,2024.3,2.26312282]
[1770451209953,0.06662816,2026.4,2024.4,1.39987873]
[1770451210159,0.06662816,2026.4,2024.5,2.52775894]
[1770451213053,0.06662816,2026.4,2023.7,2.88768345]
[1770451213054,0.24696,2026.0,2023.8,2.29957394]
[1770451213457,2.94965937,2026.5,2023.9,2.29957394]
[1770451214066,2.94965937,2026.6,2024.1,2.29987295]
[1770451214363,4.934,2026.4,2024.1,2.29987295]
[1770451214559,0.09660527,2026.3,2024.1,2.29987295]
[1770451217161,0.00235298,2026.0,2024.1,2.29987295]
[1770451217368,0.00235298,2026.0,2024.3,2.28061894]
[1770451217369,0.00235298,2025.9,2024.3,2.28061894]
[1770451219768,0.00235298,2025.9,2025.0,2.32500518]
[1770451220069,0.00235298,2025.9,2025.1,2.32500518]
[1770451220273,4.934,2025.7,2024.2,2.32500518]
[1770451220471,4.934,2025.3,2024.2,2.32500518]
[1770451221672,4.934,2025.2,2024.2,2.32500518]
[1770451221875,4.93765341,2025.2,2024.2,2.32500518]
[1770451222566,3.07490542,2025.1,2023.7,2.32214]
[1770451222864,4.934,2025.1,2023.7,2.32214]
[1770451223669,0.00365341,2025.2,2023.7,2.32214]
[1770451224477,0.25071341,2025.2,2023.7,2.32214]
[1770451224772,0.25071341,2025.2,2022.9,2.36112819]
[1770451224773,4.934,2024.2,2022.9,2.36112819]
[1770451225872,4.934,2024.1,2022.9,2.36112819]
[1770451226976,4.934,2024.0,2022.9,2.36112819]
[1770451227574,2.57264961,2024.0,2022.9,2.36112819]
[1770451227773,2.14827446,2024.6,2023.2,2.28061894]
[1770451228374,2.14827446,2024.6,2023.2,2.69895567]
[1770451228574,2.14827446,2025.1,2023.5,2.52787894]
[1770451229481,2.14827446,2024.9,2023.5,2.28061894]
[1770451229676,7.08227446,2024.9,2023.5,2.28061894]
[1770451229882,2.14827446,2024.8,2023.5,2.28061894]
[1770451230078,2.14827446,2024.7,2023.5,2.28061894]
[1770451230277,2.14827446,2024.4,2023.5,2.28061894]
[1770451231189,2.14827446,2024.3,2023.3,2.28061894]
[1770451231480,2.14827446,2024.8,2023.3,2.28061894]
[1770451231883,2.14827446,2024.5,2023.3,2.28061894]
[1770451232073,7.08227446,2024.2,2023.3,2.28061894]
[1770451232279,4.934,2023.8,2023.2,0.41833673]
[1770451232481,2.14827446,2023.7,2023.1,2.28061894]
[1770451232785,7.08809665,2023.7,2023.1,2.28061894]
[1770451232973,0.00582219,2023.7,2023.1,2.28061894]
[1770451233173,4.93982219,2023.7,2023.1,2.28061894]
[1770451233485,7.08227446,2023.6,2023.1,0.41173484]
[1770451233682,2.14827446,2023.3,2021.9,2.28061894]
[1770451233880,2.14827446,2023.3,2021.9,2.52806894]
[1770451234081,2.14827446,2023.3,2022.0,2.28061894]
[1770451234684,7.08227446,2023.3,2022.0,2.52805894]
[1770451234886,4.934,2023.6,2022.2,2.28061894]
[1770451235086,0.00582219,2023.7,2022.6,2.52797894]
[1770451235287,0.00582219,2023.7,2022.6,2.28061894]
[1770451235487,2.14827446,2024.3,2023.0,2.28061894]
[1770451235988,4.934,2024.2,2023.0,2.28061894]
[1770451236183,7.22744583,2024.1,2023.0,2.28061894]
[1770451236384,7.23350254,2024.1,2023.0,2.285476]
[1770451236783,0.00605671,2024.1,2023.2,2.26104161]
[1770451237184,2.29950254,2024.1,2023.2,2.26104161]
[1770451237892,2.29950254,2024.1,2023.2,2.50833161]
[1770451237893,0.00605671,2024.1,2023.2,2.50833161]
[1770451239793,0.00605671,2024.1,2023.4,2.26104161]
[1770451240398,4.934,2024.4,2023.6,2.26104161]
[1770451240692,5.21441192,2024.9,2023.6,2.50828161]
[1770451240899,2.28319635,2024.8,2023.6,2.50828161]
[1770451241395,0.00492408,2024.8,2023.9,2.50825161]
[1770451241596,0.00492408,2024.8,2024.1,2.26104161]
[1770451241798,2.28319635,2025.2,2024.1,2.26104161]
[1770451241998,2.27354584,2025.1,2024.1,2.26104161]
[1770451242195,2.27354584,2025.0,2024.1,2.26104161]
[1770451242491,2.27354584,2025.0,2023.6,2.26104161]
[1770451242698,2.27949973,2025.0,2023.6,2.26104161]
[1770451242896,2.24083903,2024.9,2023.6,2.26104161]
[1770451243393,2.24083903,2024.5,2023.6,2.26104161]
[1770451244296,2.93121557,2024.6,2023.6,2.50828161]
[1770451244597,2.93121557,2024.8,2023.8,2.26104161]
[1770451245202,2.93121557,2024.8,2023.8,2.50826161]
[1770451245404,2.21622926,2024.7,2023.8,2.50826161]
[1770451245695,2.21622926,2024.6,2023.8,2.26104161]
[1770451246297,2.93121557,2024.7,2023.8,2.26104161]
[1770451246298,5.13748526,2024.5,2023.8,2.26104161]
[1770451246498,2.93121557,2024.5,2023.8,2.26104161]
[1770451246693,2.20626969,2024.6,2023.8,2.26104161]
[1770451246694,5.13748526,2024.6,2023.8,2.26104161]
[1770451246999,2.15031664,2024.4,2023.8,2.26104161]
[1770451247200,2.93121557,2024.4,2023.6,2.26104161]
[1770451247394,4.934,2024.2,2023.6,2.26104161]
[1770451247590,2.93121557,2024.3,2023.6,2.26104161]
[1770451247795,2.93121557,2024.4,2023.6,2.26104161]
[1770451247994,2.93121557,2024.5,2023.6,2.26104161]
[1770451248400,5.07169703,2024.5,2023.6,2.26104161]
[1770451248904,10.00569703,2024.5,2023.6,2.26104161]
[1770451249104,10.02021264,2024.4,2023.6,2.26104161]
[1770451249501,5.08621264,2024.4,2023.6,2.26104161]
[1770451249799,2.14514255,2024.3,2023.6,2.26104161]
[1770451250295,7.07914255,2024.0,2023.3,2.26104161]
[1770451250595,2.93121557,2024.1,2023.3,2.26104161]
[1770451251197,2.93121557,2024.1,2023.3,2.50832161]
[1770451251404,2.93121557,2024.2,2023.5,2.26104161]
[1770451253205,2.93121557,2024.1,2023.5,2.26104161]
[1770451253405,2.93121557,2024.1,2023.5,2.50830161]
[1770451254908,2.93121557,2024.2,2023.5,2.50830161]
[1770451255104,7.04433764,2024.5,2023.8,2.26104161]
[1770451255105,44.24374031,2024.5,2023.8,2.26104161]
[1770451255408,5.86085344,2024.6,2023.3,2.26104161]
[1770451255409,2.08847093,2024.0,2023.3,2.26104161]
[1770451255607,2.08847093,2023.9,2023.3,2.26104161]
[1770451255908,2.11518643,2023.7,2023.3,2.26104161]
[1770451256104,46.35892674,2023.6,2023.1,2.50835161]
[1770451256606,44.24374031,2023.6,2023.1,2.50835161]
[1770451256808,46.35331242,2023.6,2023.1,2.50835161]
[1770451257509,2.10957211,2023.5,2023.1,2.50835161]
[1770451257709,2.11425532,2023.5,2023.1,2.50342753]
[1770451258411,2.11425532,2023.5,2023.1,0.24238592]
[1770451258612,7.04825532,2023.5,2023.0,0.00485706]
[1770451258908,0.00468321,2023.5,2022.9,2.26104161]
[1770451259612,2.0811667,2023.4,2022.9,2.26104161]
[1770451259908,2.0811667,2023.4,2022.9,2.26684575]
[1770451260213,44.24374031,2023.4,2022.9,2.26684575]
[1770451260711,15.0,2023.5,2022.9,2.51417575]
[1770451261807,0.00554771,2023.5,2022.9,2.51417575]
[1770451262104,0.00554771,2023.5,2022.9,2.50949254]
[1770451262105,15.0,2023.4,2022.9,2.50949254]
[1770451262311,5.4048769,2023.4,2022.9,2.50949254]
[1770451262514,4.7712769,2023.4,2022.9,2.50949254]
[1770451262806,2.86123703,2023.3,2022.9,2.50949254]
[1770451263014,2.86123703,2023.3,2022.2,0.24741]
[1770451263208,3.7641869,2023.2,2022.4,0.24739]
[1770451263513,3.7641869,2023.2,2022.0,2.89757051]
[1770451263514,2.86123703,2023.1,2022.5,0.24738]
[1770451263813,6.62516016,2023.2,2022.7,0.7399432]
[1770451264206,2.86097326,2023.1,2022.7,0.74548997]
[1770451264407,3.2260469,2023.2,2022.8,0.7399432]
[1770451264709,2.86097326,2023.4,2022.9,0.72680874]
[1770451264911,1.5561769,2023.4,2023.0,0.72680874]
[1770451265209,0.4574469,2023.4,2023.0,0.72680874]
[1770451265408,2.85961217,2023.8,2023.1,0.2473]
[1770451266606,4.26532951,2024.2,2023.4,1.03586527]
[1770451266812,3.34196514,2024.9,2024.2,0.24717]
[1770451267208,2.82723514,2024.9,2024.3,0.24716]
[1770451267411,3.08460014,2025.3,2024.4,0.51473]
[1770451267611,3.08938783,2025.3,2024.4,0.00528624]
[1770451268114,3.08938783,2025.3,2024.4,0.68540715]
[1770451268414,3.08938783,2025.3,2024.5,0.68012091]
[1770451268613,0.00478769,2025.3,2024.7,0.68012091]
[1770451268809,0.00478769,2025.3,2024.4,3.08019166]
[1770451268810,3.07603858,2025.7,2024.9,0.73165622]
[1770451269813,3.08093065,2025.7,2025.0,0.73085156]
[1770451270012,0.00489207,2025.7,2025.0,0.97792156]
[1770451270207,0.00489207,2025.7,2025.1,0.73085156]
[1770451270907,0.00489207,2025.7,2025.0,0.24707]
[1770451270908,3.31300885,2026.3,2025.4,0.71404369]
[1770451271112,3.31300885,2026.3,2025.5,0.71404369]
[1770451271508,3.31300885,2026.3,2025.4,0.24703]
[1770451271905,3.31769708,2026.3,2025.4,0.24703]
[1770451272105,3.31769708,2026.3,2025.4,0.95696353]
[1770451272310,3.31769708,2026.3,2025.5,0.70993353]
[1770451273712,3.31769708,2026.3,2025.4,0.24703]
[1770451276113,3.31769708,2026.3,2025.1,0.44637766]
[1770451276506,3.31769708,2026.3,2024.7,0.24711]
[1770451277216,3.31300885,2026.1,2024.7,0.24711]
[1770451277410,3.31300885,2025.1,2024.4,0.00528624]
[1770451277619,3.31300885,2024.9,2024.4,0.44125887]
[1770451277914,3.31300885,2024.5,2023.5,1.75952573]
[1770451278217,3.31300885,2024.5,2023.5,2.00678573]
[1770451278614,3.31300885,2024.5,2023.5,0.25127441]
[1770451278615,3.31300885,2024.4,2023.5,0.25127441]
[1770451278815,4.93938287,2024.5,2023.5,0.25127441]
[1770451278816,3.31300885,2024.1,2023.5,0.25127441]
[1770451279112,3.31300885,2024.0,2023.5,0.4573256]
[1770451279416,3.31300885,2024.0,2022.9,0.24733]
[1770451279417,3.31300885,2023.9,2023.0,0.24732]
[1770451279619,3.31300885,2023.7,2022.6,2.6998292]
[1770451279914,3.31300885,2023.7,2022.7,2.94184459]
[1770451280115,3.31300885,2023.7,2022.7,3.3911931]
[1770451280415,3.31300885,2023.7,2022.8,2.69448459]
[1770451281412,3.31300885,2024.2,2022.9,2.73946739]
[1770451281713,3.31300885,2023.9,2022.9,2.98679739]
[1770451283519,3.31300885,2024.4,2023.4,5.78602247]
[1770451283711,3.31300885,2024.4,2023.4,6.03329247]
[1770451284109,3.31300885,2024.4,2023.5,2.95045669]
[1770451284312,0.00538287,2024.5,2023.8,2.95041669]
[1770451284512,2.87e-06,2024.5,2024.1,2.70319669]
[1770451284809,3.31300885,2024.8,2024.1,2.70319669]
[1770451285009,3.31300885,2025.0,2024.0,2.97031207]
[1770451285215,3.31300885,2025.2,2024.4,0.24714]
[1770451285422,3.31300885,2025.2,2024.4,2.97025207]
[1770451285617,3.31300885,2025.2,2024.6,2.71993572]
[1770451285618,3.31726104,2025.2,2024.6,2.71993572]
[1770451286113,3.31726104,2025.2,2024.6,2.96706572]
[1770451286316,0.00425219,2025.2,2024.6,2.96706572]
[1770451286510,3.31300885,2026.3,2024.8,3.46551353]
[1770451287423,3.31300885,2026.2,2024.8,3.46551353]
[1770451287625,3.31718313,2026.2,2024.8,3.46551353]
[1770451287822,3.31718313,2026.2,2024.9,3.23472644]
[1770451288616,3.31718313,2026.2,2024.8,0.2471]
[1770451288812,3.31718313,2026.2,2024.4,0.0052553]
[1770451288813,3.31300885,2025.8,2024.4,0.0052553]
[1770451289220,8.24700885,2025.8,2024.4,0.0052553]
[1770451289424,8.24700885,2025.5,2024.4,0.0052553]
[1770451289624,3.31300885,2025.4,2024.4,0.0052553]
[1770451290125,3.31300885,2025.1,2023.8,3.28250737]
[1770451290522,3.31300885,2025.1,2023.7,0.24723]
[1770451290921,3.31300885,2025.0,2023.7,0.24723]
[1770451291230,3.31300885,2024.9,2023.7,0.2515524]
[1770451291817,3.31300885,2025.1,2024.3,3.50330712]
[1770451292627,3.31300885,2025.1,2024.4,0.24715]
[1770451293237,3.31300885,2025.7,2024.7,3.65925763]
[1770451295839,3.34961423,2026.1,2025.3,3.24952854]
[1770451296045,3.34961423,2026.0,2025.3,0.0058218]
[1770451296240,3.34961423,2025.6,2024.8,0.2471]
[1770451297242,3.34961423,2025.6,2024.8,0.25348971]
[1770451299433,3.34961423,2025.6,2024.8,0.00638971]
[1770451299641,3.34961423,2025.3,2024.2,3.49669854]
[1770451300641,3.34961423,2025.3,2024.3,3.24952854]
[1770451300839,3.34961423,2025.3,2024.6,3.24952854]
[1770451305644,3.34961423,2025.3,2024.6,3.49664854]
[1770451305849,3.34961423,2025.3,2024.3,3.24952854]
[1770451305850,8.28361423,2025.3,2024.3,3.24952854]
[1770451306050,3.34961423,2025.2,2024.2,0.00628387]
[1770451306951,3.34961423,2025.2,2024.3,3.49668854]
[1770451307545,3.34961423,2025.2,2024.4,3.49667854]
[1770451307741,3.34961423,2025.2,2024.4,0.24715]
[1770451308148,3.34961423,2025.1,2024.2,0.00628387]
[1770451308342,7.34083913,2025.8,2024.2,0.00628387]
[1770451308343,3.34961423,2024.9,2024.2,0.00628387]
[1770451308544,3.34961423,2024.9,2023.8,0.24722]
[1770451308545,4.934,2024.9,2023.8,0.24722]
[1770451308748,3.34961423,2024.7,2023.8,0.24722]
[1770451308954,3.34961423,2024.6,2023.8,0.24722]
[1770451309550,4.934,2024.5,2023.8,0.00496889]
[1770451309752,3.34961423,2023.9,2022.9,3.24952854]
[1770451309956,3.34961423,2023.9,2023.2,3.49681854]
[1770451310648,3.34961423,2023.9,2023.2,3.49899018]
[1770451311650,3.34961423,2024.5,2023.2,3.25170018]
[1770451311848,3.34961423,2024.5,2023.7,3.24952854]
[1770451312258,3.34961423,2024.4,2023.5,0.24726]
[1770451312859,3.34961423,2024.4,2023.5,3.49678854]
[1770451313166,3.34961423,2024.4,2023.7,3.24952854]
[1770451313557,3.35541997,2024.6,2023.9,3.24952854]
[1770451313858,3.35541997,2024.6,2023.8,3.07862997]
[1770451314059,3.35541997,2024.6,2023.8,6.32815851]
[1770451315953,3.35541997,2024.6,2023.7,0.24723]
[1770451316360,3.35541997,2024.6,2023.7,3.49675854]
[1770451317465,3.35541997,2024.6,2023.9,3.24952854]
[1770451317965,3.35541997,2024.6,2023.8,0.24722]
[1770451318464,3.35541997,2024.6,2023.3,3.24952854]
[1770451318765,3.35541997,2024.6,2023.3,3.49680854]
[1770451319167,3.35541997,2024.6,2023.6,3.24952854]
[1770451319762,3.35541997,2024.6,2023.6,3.49676854]
[1770451320068,3.35541997,2024.6,2023.6,0.24724]
[1770451320462,0.00580574,2024.6,2024.0,3.24952854]
[1770451320864,3.34961423,2024.8,2024.2,3.24952854]
[1770451321259,3.34961423,2024.8,2024.1,0.24718]
[1770451321572,3.34961423,2024.8,2024.1,3.49670854]
[1770451321877,3.35368611,2024.8,2024.1,0.24718]
[1770451322068,3.35368611,2024.8,2023.5,3.49678854]
[1770451322270,3.34961423,2024.7,2023.5,0.24726]
[1770451322468,3.34961423,2024.3,2023.5,0.24726]
[1770451323277,3.34961423,2024.3,2023.2,0.00217164]
[1770451323278,3.34961423,2024.2,2023.2,0.00217164]
[1770451323470,3.34961423,2024.1,2023.2,0.00217164]
[1770451323971,3.34961423,2024.1,2023.2,3.25170018]
[1770451324965,3.34961423,2024.4,2023.5,3.24952854]
[1770451325166,3.34961423,2024.4,2023.2,0.00217164]
[1770451325364,3.34961423,2024.1,2023.2,3.25170018]
[1770451329283,3.34961423,2024.1,2023.3,3.39977517]
[1770451329483,3.34961423,2024.1,2023.3,3.64705517]
[1770451330581,3.27023443,2024.6,2023.4,3.39977517]
[1770451330778,3.27023443,2024.6,2023.6,3.39977517]
[1770451331081,3.27023443,2024.6,2023.7,3.39977517]
[1770451332580,3.27023443,2024.6,2023.9,3.39977517]
[1770451335080,3.27430631,2024.8,2023.9,3.39977517]
[1770451335882,3.27430631,2024.8,2023.8,0.24722]
[1770451336080,3.27023443,2024.7,2023.8,0.24722]
[1770451337978,3.27023443,2024.7,2023.4,3.39977517]
[1770451337979,3.27023443,2024.3,2023.2,0.00217164]
[1770451338182,3.27023443,2023.9,2022.9,3.39977517]
[1770451338489,3.27023443,2023.7,2022.7,3.84912368]
[1770451338784,3.27023443,2023.5,2022.7,0.44934851]
[1770451338983,3.27023443,2023.5,2022.6,3.39977517]
[1770451339184,3.27023443,2023.5,2022.6,3.40432468]
[1770451339983,3.27023443,2023.5,2022.6,3.33054948]
[1770451340188,9.17935163,2023.7,2023.0,3.39977517]
[1770451340487,3.27023443,2023.7,2023.0,3.64709517]
[1770451340682,3.27023443,2023.9,2023.0,3.64709517]
[1770451343485,3.27023443,2023.9,2023.0,0.24732]
[1770451343684,9.17935163,2023.8,2023.0,0.24732]
[1770451343988,3.27023443,2023.7,2023.0,0.24732]
[1770451344190,3.27023443,2023.7,2022.7,0.48436593]
[1770451344389,3.27023443,2023.7,2022.6,0.00454951]
[1770451345283,3.27023443,2023.7,2022.6,3.40432468]
[1770451346289,3.27023443,2023.6,2022.6,3.40432468]
[1770451346490,3.27023443,2023.4,2022.6,0.00454951]
[1770451346988,3.27023443,2023.4,2022.6,0.47158894]
[1770451347189,3.27023443,2023.4,2022.6,4.11873411]
[1770451347990,3.27023443,2023.4,2022.6,0.71895894]
[1770451348290,3.27023443,2023.4,2021.8,2.88202925]
[1770451348497,3.27023443,2023.2,2022.0,0.24744]
[1770451348802,3.27023443,2023.1,2022.0,3.64721517]
[1770451348987,3.27023443,2023.0,2022.0,0.24744]
[1770451349391,3.27023443,2022.9,2022.0,0.24869624]
[1770451349588,3.27023443,2022.8,2022.0,0.00125624]
[1770451349792,5.9091172,2022.5,2021.0,0.08973882]
[1770451349998,5.9091172,2022.5,2021.0,3.48951399]
[1770451349999,3.27023443,2022.2,2021.0,3.48951399]
[1770451350195,3.27023443,2022.0,2021.0,0.55610739]
[1770451350388,7.34083913,2022.5,2020.4,3.39977517]
[1770451350389,3.27023443,2021.8,2020.4,3.39977517]
[1770451350594,3.27023443,2021.5,2020.3,0.24765]
[1770451350894,3.27023443,2021.4,2020.3,0.24765]
[1770451351095,3.27023443,2021.1,2020.0,0.47803134]
[1770451351290,3.27023443,2020.9,2020.0,0.00587781]
[1770451351600,3.27023443,2020.9,2020.0,3.87889595]
[1770451351801,3.27023443,2021.4,2020.3,3.39977517]
[1770451352102,3.27023443,2021.2,2020.1,3.64744517]
[1770451352896,3.27023443,2021.2,2020.0,0.47912078]
[1770451353197,3.27023443,2021.2,2019.6,3.39977517]
[1770451353501,3.27023443,2021.2,2019.6,4.11343294]
[1770451353899,3.27023443,2021.2,2019.6,0.71365777]
[1770451354300,3.27023443,2021.2,2019.6,4.11343294]
[1770451354497,3.27023443,2021.2,2019.6,0.71365777]
[1770451355400,3.27023443,2021.1,2019.6,0.46592777]
[1770451355601,3.27023443,2021.0,2019.6,3.39977517]
[1770451355905,3.27023443,2021.0,2019.6,0.47210606]
[1770451356099,3.27023443,2021.0,2019.1,3.2231744]
[1770451356308,3.27023443,2021.0,2018.8,3.2231744]
[1770451356502,3.27023443,2021.0,2018.8,3.4710044]
[1770451357099,3.18606774,2020.6,2018.8,3.70002715]
[1770451357904,3.18606774,2020.2,2018.8,0.47685275]
[1770451358205,3.18606774,2020.1,2018.6,3.2231744]
[1770451359706,3.18606774,2020.1,2018.6,3.4710244]
[1770451360303,3.18606774,2020.1,2018.6,0.24785]
[1770451360696,3.18606774,2020.1,2018.5,0.47504901]
[1770451361012,3.18606774,2019.5,2017.2,3.2231744]
[1770451361306,3.18989649,2019.5,2017.4,3.2231744]
[1770451361506,3.18989649,2019.5,2017.4,3.4711744]
[1770451362205,3.18989649,2019.5,2017.4,6.55004781]